[Event "LXIII MEX-ch Open Leon 2017"]
[Site "Leon"]
[Date "2017.04.13"]
[Round "3"]
[White "Blanco Fernandez, Alvaro"]
[Black "Leon Valdes, Jony Wilson"]
[Result "1-0"]
[ECO "A17"]
[WhiteElo "2241"]
[BlackElo "2363"]
[Annotator "NA"]
[PlyCount "87"]
[EventDate "2017.??.??"]
[EventType "swiss"]
[EventCountry "MEX"]
[SourceTitle "playchess.com"]
[Source "ChessBase"]
[SourceQuality "1"]
[TimeControl "5400+30"]

1. Nf3 {[%emt 0:01:23]} e6 {[%emt 0:00:19]} 2. c4 {[%emt 0:00:09]} Nf6 {[%emt 0:00:09]} 3. Nc3 {[%emt 0:00:34]} b6 {[%emt 0:04:19]} 4. g3 {[%emt 0:03:49]} Bb7 {[%emt 0:00:05]} 5. Bg2 {[%emt 0:00:03]} Be7 {[%emt 0:00:11]} 6. O-O {[%emt 0:00:02]} O-O {[%emt 0:00:09]} 7. Re1 {[%emt 0:00:02]} d5 {[%emt 0:00:06]} 8. cxd5 {[%emt 0:00:17]} exd5 {[%emt 0:00:26]} 9. d4 {[%emt 0:00:13]} Ne4 {[%emt 0:00:46]} 10. Qb3 {[%emt 0:05:21]} Nxc3 {[%emt 0:00:40]} 11. bxc3 {[%emt 0:00:44]} Nc6 {[%emt 0:04:53]} 12. h4 {[%emt 0:01:23]} Na5 {[%emt 0:12:42]} 13. Qc2 {[%emt 0:00:15]} f6 {[%emt 0:06:18]} 14. Nd2 {[%emt 0:04:45]} Kh8 {[%emt 0:00:54]} 15. h5 {[%emt 0:02:19]} Qd7 {[%emt 0:05:40]} 16. Kh2 {[%emt 0:09:10]} Qe8 {[%emt 0:04:44]} 17. Bf3 {[%emt 0:02:23]} f5 {[%emt 0:01:34]} 18. Nb3 {[%emt 0:04:06]} Nc4 {[%emt 0:02:15]} 19. Bf4 {[%emt 0:00:11]} Bd6 {[%emt 0:02:03]} 20. Nd2 {[%emt 0:00:15]} Bxf4 {[%emt 0:03:14]} 21. Nxc4 {[%emt 0:00:37]} Rb8 {[%emt 0:07:45]} 22. Nb2 {[%emt 0:11:12]} Bd6 {[%emt 0:00:33]} 23. e3 {[%emt 0:00:33]} Qf7 {[%emt 0:09:04]} 24. Kg2 {[%emt 0:00:47]} c5 {[%emt 0:06:31]} 25. Nd3 {[%emt 0:00:43]} cxd4 {[%emt 0:01:00]} 26. exd4 {[%emt 0:00:28]} f4 {[%emt 0:01:06]} 27. g4 {[%emt 0:00:10]} Rbc8 {[%emt 0:03:51]} 28. Ne5 {[%emt 0:07:27]} Qc7 {[%emt 0:02:03]} 29. Rac1 {[%emt 0:03:15]} Ba3 {[%emt 0:01:56]} 30. Rcd1 {[%emt 0:00:07]} Qxc3 {[%emt 0:01:07]} 31. Qb1 {[%emt 0:00:02]} Qb4 {[%emt 0:06:18]} 32. Qd3 {[%emt 0:02:40]} Rc3 {[%emt 0:01:43]} 33. Qd2 {[%emt 0:02:17]} Rc7 {[%emt 0:02:21]} 34. Qd3 {[%emt 0:00:47]} Qd6 {[%emt 0:00:51]} 35. Ng6+ {[%emt 0:03:17]} hxg6 {[%emt 0:00:04]} 36. hxg6 {[%emt 0:00:06]} Kg8 {[%emt 0:01:09]} 37. Re5 {[%emt 0:00:12]} Rc1 {[%emt 0:03:36]} 38. Rd2 {[%emt 0:04:38]} Bb4 {[%emt 0:01:45]} 39. Rde2 {[%emt 0:00:39]} Rc3 {[%emt 0:02:42]} 40. Qb1 {[%emt 0:00:16]} Ba6 {[%emt 0:01:14]} 41. Qh1 {[%emt 0:02:01]} Qxg6 {[%emt 0:00:05]} 42. Bxd5+ {[%emt 0:00:05]} Rf7 {[%emt 0:00:02]} 43. Re8+ {[%emt 0:00:09]} Bf8 {[%emt 0:00:03]} 44. Rxf8+ {[%emt 0:00:08]} 1-0

[Event "LXIII MEX-ch Open Leon 2017"]
[Site "Leon"]
[Date "2017.04.14"]
[Round "5"]
[White "Blanco Fernandez, Alvaro"]
[Black "Garcia Guerrero, Isaac Antonio"]
[Result "1/2-1/2"]
[ECO "B36"]
[WhiteElo "2241"]
[BlackElo "2332"]
[Annotator "NA"]
[PlyCount "70"]
[EventDate "2017.??.??"]
[EventType "swiss"]
[EventCountry "MEX"]
[SourceTitle "playchess.com"]
[Source "ChessBase"]
[SourceQuality "1"]
[TimeControl "5400+30"]

1. e4 {[%emt 0:01:53]} c5 {[%emt 0:00:25]} 2. Nf3 {[%emt 0:00:11]} g6 {[%emt 0:00:09]} 3. d4 {[%emt 0:00:07]} cxd4 {[%emt 0:00:07]} 4. Nxd4 {[%emt 0:00:12]} Nc6 {[%emt 0:00:06]} 5. c4 {[%emt 0:00:06]} Nf6 {[%emt 0:00:42]} 6. Nc3 {[%emt 0:00:12]} Nxd4 {[%emt 0:00:28]} 7. Qxd4 {[%emt 0:00:10]} d6 {[%emt 0:00:11]} 8. Bg5 {[%emt 0:00:08]} Bg7 {[%emt 0:00:18]} 9. Be2 {[%emt 0:00:43]} O-O {[%emt 0:00:22]} 10. Qd2 {[%emt 0:00:13]} a5 {[%emt 0:00:23]} 11. h4 {[%emt 0:03:13]} a4 {[%emt 0:06:58]} 12. Rc1 {[%emt 0:03:58]} Qa5 {[%emt 0:02:27]} 13. h5 {[%emt 0:03:03]} Be6 {[%emt 0:04:35]} 14. hxg6 {[%emt 0:01:25]} fxg6 {[%emt 0:02:28]} 15. f3 {[%emt 0:01:19]} Qe5 {[%emt 0:19:00]} 16. Bf4 {[%emt 0:06:47]} Qa5 {[%emt 0:01:04]} 17. Be3 {[%emt 0:04:42]} Nh5 {[%emt 0:13:43]} 18. Nd5 {[%emt 0:10:36]} Qxd2+ {[%emt 0:05:14]} 19. Kxd2 {[%emt 0:00:16]} Bxd5 {[%emt 0:00:40]} 20. cxd5 {[%emt 0:00:18]} Ng3 {[%emt 0:01:09]} 21. Rhd1 {[%emt 0:00:30]} Nxe2 {[%emt 0:01:08]} 22. Kxe2 {[%emt 0:00:02]} Rfc8 {[%emt 0:01:40]} 23. Rxc8+ {[%emt 0:01:30]} Rxc8 {[%emt 0:00:14]} 24. Rc1 {[%emt 0:00:03]} Rxc1 {[%emt 0:10:09]} 25. Bxc1 {[%emt 0:00:01]} b5 {[%emt 0:00:11]} 26. Kd3 {[%emt 0:00:07]} Kf7 {[%emt 0:00:12]} 27. Kc2 {[%emt 0:00:11]} Bd4 {[%emt 0:00:08]} 28. b3 {[%emt 0:00:10]} axb3+ {[%emt 0:00:09]} 29. Kxb3 {[%emt 0:00:22]} Bc5 {[%emt 0:00:29]} 30. Bg5 {[%emt 0:05:05]} e6 {[%emt 0:02:17]} 31. a4 {[%emt 0:02:29]} bxa4+ {[%emt 0:00:44]} 32. Kxa4 {[%emt 0:00:03]} exd5 {[%emt 0:00:28]} 33. exd5 {[%emt 0:00:01]} Ke8 {[%emt 0:00:41]} 34. Kb5 {[%emt 0:00:02]} Kd7 {[%emt 0:00:09]} 35. Kc4 {[%emt 0:00:02]} Ke8 {[%emt 0:00:39]} 1/2-1/2

[Event "LXIII MEX-ch Open Leon 2017"]
[Site "Leon"]
[Date "2017.04.14"]
[Round "6"]
[White "Leon Valdes, Jony Wilson"]
[Black "Tello Chavez, Isaac Valent"]
[Result "1/2-1/2"]
[ECO "D02"]
[WhiteElo "2363"]
[BlackElo "2286"]
[Annotator "ChessBase"]
[PlyCount "133"]
[EventDate "2017.??.??"]
[EventType "swiss"]
[EventCountry "MEX"]
[SourceTitle "playchess.com"]
[Source "ChessBase"]
[SourceQuality "1"]
[TimeControl "5400+30"]

1. d4 {[%emt 0:01:52]} d5 {[%emt 0:00:25]} 2. Nf3 {[%emt 0:00:07]} Nf6 {[%emt 0:00:42]} 3. g3 {[%emt 0:00:05]} Bf5 {[%emt 0:03:12]} 4. Bg2 {[%emt 0:00:08]} e6 {[%emt 0:00:22]} 5. O-O {[%emt 0:00:09]} Nbd7 {[%emt 0:02:06]} 6. Nh4 {[%emt 0:04:59]} Bg4 {[%emt 0:03:22]} 7. h3 {[%emt 0:00:28]} Bh5 {[%emt 0:00:36]} 8. c4 {[%emt 0:02:31]} c6 {[%emt 0:02:25]} 9. cxd5 {[%emt 0:00:22]} cxd5 {[%emt 0:01:24]} 10. Nc3 {[%emt 0:04:18]} Be7 {[%emt 0:06:04]} 11. g4 {[%emt 0:05:42]} Bg6 {[%emt 0:01:55]} 12. Nxg6 {[%emt 0:00:27]} hxg6 {[%emt 0:00:21]} 13. Bf4 {[%emt 0:01:19]} a6 {[%emt 0:02:19]} 14. Qd3 {[%emt 0:04:18]} O-O {[%emt 0:03:05]} 15. Rfc1 {[%emt 0:03:38]} Rc8 {[%emt 0:05:31]} 16. Rc2 {[%emt 0:01:55]} Nb6 {[%emt 0:03:13]} 17. Rac1 {[%emt 0:05:23]} Bd6 {[%emt 0:05:32]} 18. Bg5 {[%emt 0:12:02]} Qd7 {[%emt 0:05:30]} 19. Nb1 {[%emt 0:07:58]} Rxc2 {[%emt 0:11:25]} 20. Rxc2 {[%emt 0:00:10]} Rc8 {[%emt 0:00:21]} 21. Rxc8+ {[%emt 0:01:15]} Qxc8 {[%emt 0:02:25]} 22. Qc3 {[%emt 0:02:14]} Qc4 {[%emt 0:02:25]} 23. Qxc4 {[%emt 0:00:59]} Nxc4 {[%emt 0:00:08]} 24. Bc1 {[%emt 0:01:27]} Kf8 {[%emt 0:03:21]} 25. b3 {[%emt 0:00:47]} Na5 {[%emt 0:01:51]} 26. e3 {[%emt 0:01:30]} Nc6 {[%emt 0:00:23]} 27. Kf1 {[%emt 0:00:44]} Ke7 {[%emt 0:01:14]} 28. Ke2 {[%emt 0:00:17]} Nd7 {[%emt 0:02:17]} 29. Bb2 {[%emt 0:00:57]} Nb4 {[%emt 0:02:38]} 30. a3 {[%emt 0:00:13]} Nc6 {[%emt 0:00:11]} 31. f3 {[%emt 0:03:51]} Bc7 {[%emt 0:04:53]} 32. Kd3 {[%emt 0:02:31]} f6 {[%emt 0:02:29]} 33. Nc3 {[%emt 0:04:43]} Na5 {[%emt 0:03:12]} 34. Kc2 {[%emt 0:00:12]} Nc6 {[%emt 0:00:19]} 35. Bc1 {[%emt 0:02:21]} g5 {[%emt 0:00:57]} 36. Bf1 {[%emt 0:02:18]} Bd6 {[%emt 0:02:27]} 37. Kd3 {[%emt 0:05:19]} b5 {[%emt 0:02:35]} 38. Kd2 {[%emt 0:02:42]} Nb6 {[%emt 0:00:43]} 39. Bb2 {[%emt 0:02:15]} Na5 {[%emt 0:00:19]} 40. Kc2 {[%emt 0:00:20]} Nc6 {[%emt 0:00:12]} 41. a4 {[%emt 0:01:54]} b4 {[%emt 0:03:15]} 42. Nd1 {[%emt 0:00:34]} a5 {[%emt 0:00:41]} 43. Bb5 {[%emt 0:00:43]} Na7 {[%emt 0:00:17]} 44. Ba6 {[%emt 0:00:20]} Bg3 {[%emt 0:01:47]} 45. Bc1 {[%emt 0:00:09]} Kd6 {[%emt 0:00:39]} 46. Kd3 {[%emt 0:01:39]} Nd7 {[%emt 0:01:19]} 47. e4 {[%emt 0:04:02]} Nc6 {[%emt 0:01:12]} 48. Bb5 {[%emt 0:01:26]} Ne7 {[%emt 0:00:23]} 49. Ne3 {[%emt 0:01:41]} Nf8 {[%emt 0:00:53]} 50. Ng2 {[%emt 0:01:56]} Nfg6 {[%emt 0:00:38]} 51. Be3 {[%emt 0:01:01]} Nf4+ {[%emt 0:02:24]} 52. Nxf4 {[%emt 0:00:33]} Bxf4 {[%emt 0:01:42]} 53. e5+ {[%emt 0:02:06]} Kc7 {[%emt 0:02:23]} 54. Bxf4 {[%emt 0:01:26]} gxf4 {[%emt 0:00:02]} 55. exf6 {[%emt 0:00:38]} gxf6 {[%emt 0:00:03]} 56. h4 {[%emt 0:00:13]} Kd8 {[%emt 0:01:24]} 57. Ke2 {[%emt 0:00:19]} Ng6 {[%emt 0:00:57]} 58. h5 {[%emt 0:00:06]} Nh8 {[%emt 0:00:06]} 59. Kf2 {[%emt 0:00:35]} Ke7 {[%emt 0:00:13]} 60. Bd3 {[%emt 0:00:40]} Kf8 {[%emt 0:01:51]} 61. Ke2 {[%emt 0:00:39]} Kg7 {[%emt 0:00:25]} 62. Ba6 {[%emt 0:00:25]} Nf7 {[%emt 0:01:55]} 63. Bc8 {[%emt 0:00:15]} Nd8 {[%emt 0:00:22]} 64. Bd7 {[%emt 0:00:15]} Kh6 {[%emt 0:00:18]} 65. Kd3 {[%emt 0:00:51]} Kg5 66. Ke2 e5 67. Bc8 1/2-1/2

[Event "LXIII MEX-ch Open Leon 2017"]
[Site "Leon"]
[Date "2017.04.15"]
[Round "7"]
[White "Diaz Hernandez, Heriberto"]
[Black "Salazar Farias, Luis German"]
[Result "1-0"]
[ECO "B38"]
[WhiteElo "2331"]
[BlackElo "2296"]
[Annotator "RC"]
[PlyCount "23"]
[EventDate "2017.??.??"]
[EventType "swiss"]
[EventCountry "MEX"]
[SourceTitle "playchess.com"]
[Source "ChessBase"]
[SourceQuality "1"]
[TimeControl "5400+30"]

1. e4 {[%emt 0:00:00]} c5 {[%emt 0:01:22]} 2. Nf3 {[%emt 0:00:00]} g6 {[%emt 0:00:42]} 3. c4 {[%emt 0:00:41]} Nc6 {[%emt 0:00:06]} 4. d4 {[%emt 0:00:18]} cxd4 {[%emt 0:00:06]} 5. Nxd4 {[%emt 0:00:05]} Bg7 {[%emt 0:00:03]} 6. Be3 {[%emt 0:00:16]} Nf6 {[%emt 0:00:06]} 7. Nc3 {[%emt 0:00:13]} O-O {[%emt 0:00:06]} 8. Be2 {[%emt 0:00:31]} d6 {[%emt 0:00:00]} 9. O-O {[%emt 0:00:38]} Bd7 {[%emt 0:00:21]} 10. f3 Nxd4 {[%emt 0:04:51]} 11. Bxd4 {[%emt 0:00:56]} a5 {[%emt 0:00:05]} 12. c5 1-0